Cogmind - Beta 16.1 @@@ ROGUE MODE // 2026.04.13 @ 22:12:13 Player: Nostromo Result: Self-destructed Performance ------------- Evolutions (2) 1000 Regions Visited (3) 600 Robots Destroyed (19) 95 Value Destroyed (521) 521 Prototype IDs (1) 20 Alien Tech Used (0) 0 Bonus (0) 0 TOTAL SCORE: 2236 Bonus ------- None Cogmind --------- Core Integrity 377/550 Matter 255/300 Energy 100/100 System Corruption 0% Temperature Critical (687) Movement Core (400) Ox7 Location -8/Materials Parts ------- > --- POWER (1) -------- (None) > --- PROPULSION (2) --- (None) > --- UTILITY (4) ------ Large Storage Unit > --- WEAPON (4) ------- Particle Cannon > --- INVENTORY (15) --- Ion Engine Light Deuterium Engine Aluminum Leg Power Shielding Shield Generator Heavy EM Shotgun Medium Laser Light EM Pulse Cannon Beam Cannon Beam Cannon Particle Cannon Heavy Assault Rifle Flak Cannon Mace Peak State ------------ > --- POWER ------------ Light Deuterium Engine > --- PROPULSION ------- Aluminum Leg Aluminum Leg > --- UTILITY ---------- Small Storage Unit Large Storage Unit > --- WEAPON ----------- Flak Cannon Flak Cannon Flak Cannon Flak Cannon > --- INVENTORY -------- Light Deuterium Engine Light Treads Light Treads Aluminum Leg Power Shielding Heavy EM Shotgun Medium Laser Medium Laser Light EM Pulse Cannon Beam Cannon Beam Cannon Beam Cannon Heavy Assault Rifle Shotgun Mace [Rating: 21] Favorites ----------- Power Improved Ion Engine Engine Improved Ion Engine Propulsion Aluminum Leg Treads Light Treads Leg Aluminum Leg Utility Large Storage Unit Storage Large Storage Unit Protection Light Armor Plating Weapon Particle Cannon Energy Gun Medium Laser Energy Cannon Particle Cannon Ballistic Gun Assault Rifle Ballistic Cannon Flak Cannon Build | -11 -10 -9 -8 ------- Run | Yrd Mat Mat Mat Slots Evolved 4 | . . 2 2 Power . | . . . . Propulsion . | . . . . Utility 2 | . . . 2 Weapon 2 | . . 2 . Parts Attached 25 | 5 2 18 . Power 3 | 1 . 2 . Engine 3 | 1 . 2 . Core . | . . . . Reactor . | . . . . Propulsion 6 | 2 . 4 . Treads 2 | . . 2 . Leg 4 | 2 . 2 . Wheel . | . . . . Hover . | . . . . Flight . | . . . . Utility 3 | . 2 1 . Device . | . . . . Storage 2 | . 2 . . Processor . | . . . . Hackware . | . . . . Protection 1 | . . 1 . Artifact . | . . . . Weapon 13 | 2 . 11 . Energy Gun 3 | 1 . 2 . Energy Cannon 5 | . . 5 . Ballistic Gun 1 | 1 . . . Ballistic Cannon 4 | . . 4 . Launcher . | . . . . Special Weapon . | . . . . Impact Weapon . | . . . . Slashing Weapon . | . . . . Piercing Weapon . | . . . . Special Melee Weapon . | . . . . Unidentified Prototypes 1 | . . 1 . Parts Lost 8 | . . 1 7 Power 1 | . . . 1 Propulsion 2 | . . . 2 Utility 1 | . . . 1 Weapon 4 | . . 1 3 Highest Loss Streak 7 | . . 1 7 To Critical Strikes . | . . . . Average Backups 11 | 3 7 13 14 Power 1 | . . 1 2 Propulsion 2 | 1 3 1 1 Utility 1 | . . 1 2 Weapon 6 | 1 2 8 9 Tool/Special . | . . . . Unused Backups 14 | . . 5 9 Power 2 | . . . 2 Propulsion 3 | . . 2 1 Utility 3 | . . 1 2 Weapon 6 | . . 2 4 Tool/Special . | . . . . Average Slot Usage (%) 95 | . 97 97 76 Engine 11 | . 14 11 8 Treads 9 | . . 13 . Leg 13 | . 28 8 17 Storage 17 | . 25 16 9 Protection 4 | . . 5 7 Energy Gun 10 | . 14 8 8 Energy Cannon 14 | . . 18 25 Ballistic Gun 4 | . 14 2 . Ballistic Cannon 8 | . . 12 . Peak Build Rating 21 | 5 8 21 15 Average Rating 13 | 3 7 15 14 On Entrance 7 | . 5 8 15 Avg Prop Armor Cover (%) . | . . . . Naked Turns . | . . . . Heaviest Build 54 | 7 32 54 44 Greatest Support 40 | 20 20 40 20 Greatest Overweight (x) 14 | . 1 14 2 Average Overweight (x) 1 | . . 1 2 Largest Inventory Capacity 15 | 5 15 15 15 Average Capacity 14 | 5 14 15 15 Most Carried 15 | 5 11 15 14 Average Carried 11 | 4 7 13 14 Final Capacity 15 | 5 15 15 15 Final Carried 14 | 4 11 14 14 Class Distribution -------------------- 41% | Tank 32% | Gunner 25% | Mutant Dominant Class ---------------- Mutant | -10/Materials Tank | -9/Materials Tank | -8/Materials Resources | -11 -10 -9 -8 ----------- Run | Yrd Mat Mat Mat Matter Collected 608 | 125 149 334 . Remotely . | . . . . Salvage Created 487 | . 119 323 45 Parts 33 | . 8 22 3 Haulers Intercepted . | . . . . Recyclers Shooed 1 | . . 1 . Parts Field Recycled . | . . . . Retrieved Matter . | . . . . Parts Self-Destructed . | . . . . Prevented . | . . . . Parts Restored . | . . . . Kills | -11 -10 -9 -8 ------- Run | Yrd Mat Mat Mat Combat Hostiles Destroyed 15 | . 5 10 . Guns 9 | . 5 4 . Cannons 6 | . . 6 . Classes Destroyed 5 | . 2 3 . Operator 1 | . . 1 . Watcher 3 | . . 2 1 Swarmer 6 | . 3 3 . Grunt 7 | . 2 5 . Sentry 2 | . . 2 . Best Kill Streak 4 | . 3 4 1 Combat Bots Only 3 | . 3 3 . Max Kills in Single Turn 1 | . 1 1 1 Gunslinging . | . . . . Exploded . | . . . . Melee . | . . . . Uniques/NPCs Destroyed . | . . . . Combat | -11 -10 -9 -8 -------- Run | Yrd Mat Mat Mat Hostile Shots Fired 180 | . 43 83 54 Missed 47 | . 17 19 11 Hits 133 | . 26 64 43 Projectile 133 | . 26 64 43 Critical Strikes 5 | . . 4 1 Damage Taken 1877 | . 252 869 756 Core 292 | . 38 81 173 Absorbed by Shields . | . . . . Core Remaining (%) 87 | 100 84 79 . Volleys Fired 60 | . 18 37 5 Largest 4 | . 2 4 4 Hottest 254 | . 70 254 254 Shots Fired 127 | . 36 76 15 Gun 66 | . 36 27 3 Cannon 61 | . . 49 12 Launcher . | . . . . Special . | . . . . Kinetic 58 | . 18 40 . Thermal 69 | . 18 36 15 Explosive . | . . . . Electromagnetic . | . . . . Robot Hit Streak 10 | . 6 10 6 Robot Miss Streak 16 | . 3 16 1 Penetration Max . | . . . . Secondary Targets 2 | . 2 . . Max Gunslinging Chain 1 | . 1 . . Shots Hit Robots 77 | . 21 46 10 Core Hits 38 | . 9 26 3 Critical Kills . | . . . . Critical Parts Destroyed . | . . . . Critical Strikes 4 | . 3 1 . Burn 4 | . 3 1 . Melee Attacks . | . . . . Impact . | . . . . Slashing . | . . . . Piercing . | . . . . Sneak Attacks . | . . . . Combat Hostiles . | . . . . Follow-up Attacks . | . . . . Damage Inflicted 1056 | . 278 587 191 Guns 539 | . 278 236 25 Cannons 517 | . . 351 166 Explosions . | . . . . Melee . | . . . . Ramming . | . . . . Kinetic 379 | . 89 290 . Thermal 677 | . 189 297 191 Explosive . | . . . . Electromagnetic . | . . . . Impact . | . . . . Slashing . | . . . . Piercing . | . . . . Highest Corruption . | . . . . Average Corruption . | . . . . Corruption Purged . | . . . . Corruption Blocked . | . . . . Overload Shots . | . . . . Overflow Damage 2 | . . 2 . Projectiles 2 | . . 2 . Explosions . | . . . . Melee . | . . . . Knockbacks 13 | . . 13 . Impact . | . . . . Kinetic 11 | . . 11 . Secondary 2 | . . 2 . Self-Inflicted Damage 61 | . . 61 . Shots 1 | . . 1 . Rammed . | . . . . Targets Rammed . | . . . . Kicked . | . . . . Crushed . | . . . . Highest Temperature 682 | . 128 361 682 Average Temperature 115 | . 58 100 385 Received Heat Transfer 840 | . 96 339 405 Effects 12 | . . . 12 Shutdowns 2 | . . . 2 Energy Bleed 2 | . . . 2 Interference 3 | . . . 3 Damage (minor) 1 | . . . 1 Damage (major) 3 | . . . 3 Damage (core) 1 | . . . 1 Siege Activations . | . . . . Martial Activations . | . . . . Shielding Activations . | . . . . Robots Disrupted . | . . . . Combat Hostiles . | . . . . Robots Corrupted . | . . . . Combat Hostiles . | . . . . Parts Fried . | . . . . Impact Corruptions . | . . . . Robots Melted . | . . . . Combat Hostiles . | . . . . Parts Melted 3 | . 1 2 . Heat Transferred 2035 | . 777 888 370 Parts Sabotaged . | . . . . Parts Stolen . | . . . . Parts Stripped . | . . . . Power Chain Reactions . | . . . . Alert | -11 -10 -9 -8 ------- Run | Yrd Mat Mat Mat Maximum Alert Level 1 | . . 1 . Low Security (%) 96 | 100 100 94 100 Level 1 3 | . . 5 . Level 2 . | . . . . Level 3 . | . . . . Level 4 . | . . . . Level 5 . | . . . . High Security . | . . . . Max Security . | . . . . Peak Influence 215 | . 70 215 32 Initial 31 | . . . 31 Average 67 | . 23 91 13 Influence Increases 547 | . 115 380 52 Destroy 0b10 Robot/C 300 | . 100 200 . Destroy 0b10 Robot/NC 20 | . . 15 5 Destroy Leader 86 | . 10 74 2 Successful Hack 6 | . 5 1 . Disable Machine 90 | . . 45 45 Destroy Structure 30 | . . 30 . Lose Combat Pursuer 15 | . . 15 . Influence Decreases 547 | . 115 305 127 Entered New Map 44 | . . . 44 Time Decay 453 | . 115 295 43 Lost Part 50 | . . 10 40 Squads Dispatched 5 | . . 5 . Investigation 2 | . . 2 . Extermination . | . . . . Reinforcement 3 | . . 3 . Assault . | . . . . Garrison . | . . . . Intercept . | . . . . Searches Triggered . | . . . . Construction Impeded 1 | . . 1 . Haulers Reinforced . | . . . . Active Scanning Responses . | . . . . Cargo Convoy Interrupts . | . . . . Stealth | -11 -10 -9 -8 --------- Run | Yrd Mat Mat Mat Distress Signals . | . . . . Communications Jammed . | . . . . Distress Signals . | . . . . Times Spotted 28 | . 5 17 6 Peak Tracking Total 7 | . 3 7 6 Tactical Retreats 1 | . . 1 . Traps | -11 -10 -9 -8 ------- Run | Yrd Mat Mat Mat Traps Triggered 1 | . . 1 . Indirectly . | . . . . Trap Hack Attempts . | . . . . Triggered . | . . . . Disarmed . | . . . . Reprogrammed . | . . . . Reused . | . . . . Traps Extracted . | . . . . Installed . | . . . . Triggered . | . . . . Machines | -11 -10 -9 -8 ---------- Run | Yrd Mat Mat Mat Machines Disabled 6 | . . 3 3 Max in Single Turn 2 | . . 2 1 Machines Repaired . | . . . . Machines Dismantled . | . . . . Machines Sabotaged . | . . . . Overloaded Fab Kills . | . . . . Hacking | -11 -10 -9 -8 --------- Run | Yrd Mat Mat Mat Machines Accessed 4 | . 1 2 1 Terminals 2 | . 1 . 1 Fabricators . | . . . . Repair Stations . | . . . . Recycling Units 1 | . . 1 . Scanalyzers 1 | . . 1 . Garrison Access . | . . . . Total Hacks 18 | . 1 14 3 Successful 15 | . 1 12 2 Failed 3 | . . 2 1 Catastrophic . | . . . . Database Lockouts . | . . . . Manual . | . . . . Terminals 4 | . 1 . 3 Fabricators . | . . . . Repair Stations . | . . . . Recycling Units 5 | . . 5 . Scanalyzers 9 | . . 9 . Garrison Access . | . . . . Terminal Hacks 3 | . 1 . 2 Alert Level 1 | . . . 1 Locate Traps 1 | . . . 1 Hauler Manifests 1 | . 1 . . Fabricator Hacks . | . . . . Repair Station Hacks . | . . . . Recycling Unit Hacks 4 | . . 4 . Recycle Component 2 | . . 2 . Process 1 | . . 1 . Retrieve Matter 1 | . . 1 . Scanalyzer 8 | . . 8 . Insert Component 4 | . . 4 . Analyze 4 | . . 4 . Garrison Access Hacks . | . . . . Unauthorized Hacks . | . . . . Terminals . | . . . . Fabricators . | . . . . Repair Stations . | . . . . Recycling Units . | . . . . Scanalyzers . | . . . . Garrison Access . | . . . . Data Cores Recovered . | . . . . Used . | . . . . Hacking Detections 3 | . . 2 1 Full Trace Events 1 | . . 1 . Feedback Events . | . . . . Feedback Blocked . | . . . . Robot Schematics Acquired . | . . . . Robots Built . | . . . . Authchips . | . . . . Time . | . . . . Total Robot Build Rating . | . . . . Part Schematics Acquired 4 | . . 4 . Parts Built . | . . . . Authchips . | . . . . Time . | . . . . Total Part Build Rating . | . . . . Part Studies Acquired . | . . . . Parts Repaired . | . . . . Time . | . . . . Parts Recycled 2 | . . 2 . Recycled Matter 51 | . . 51 . Retrieved Matter 51 | . . 51 . Retrieved Components . | . . . . Parts Scanalyzed 4 | . . 4 . Part Schematics Acquired 4 | . . 4 . Parts Damaged . | . . . . Bothacking | -11 -10 -9 -8 ------------ Run | Yrd Mat Mat Mat Used RIF Installer . | . . . . Robots Hacked . | . . . . Non-combat . | . . . . Combat . | . . . . Robot Hacks Applied . | . . . . Relay Couplers Released . | . . . . Fabnet Peak Effective % . | . . . . Robots Rewired . | . . . . Allies Hacked . | . . . . Hacks Repelled . | . . . . Allies | -11 -10 -9 -8 -------- Run | Yrd Mat Mat Mat Total Allies . | . . . . Largest Group . | . . . . Highest-Rated Group . | . . . . Highest-Rated Ally . | . . . . Total Orders . | . . . . Ally Attacks . | . . . . Total Damage . | . . . . Kills . | . . . . Allies Corrupted . | . . . . Allies Melted . | . . . . Intel | -11 -10 -9 -8 ------- Run | Yrd Mat Mat Mat Active Infowar (turns) . | . . . . Robot Analysis Total . | . . . . Derelict Logs Recovered . | . . . . Drone Launches . | . . . . Drone Recoveries . | . . . . Exploration | -11 -10 -9 -8 ------------- Run | Yrd Mat Mat Mat Turns Passed 1809 | 60 416 1212 121 Spaces Moved 733 | 47 196 451 39 Core 13 | 11 . 2 . Treads 264 | . . 264 . Legs 456 | 36 196 185 39 Wheels . | . . . . Hover . | . . . . Flight . | . . . . Fastest Speed 50 | 50 120 160 260 Average Speed 212 | 103 177 234 260 Slowest Speed 750 | 120 190 750 260 Overloaded Moves . | . . . . Propulsion Burnouts . | . . . . Robots Hopped . | . . . . Potential Cave-ins . | . . . . Cave-ins Triggered . | . . . . Exploration Rate (%) 18 | 3 40 24 8 Regions Visited 3 Branch Regions . Pre-discovered Areas . | . . . . Known Exits Taken . | . . . . Unknown Exits Taken 3 | 1 1 1 . Scrap Searched . | . . . . Spaces Dug . | . . . . Terrain Destroyed 33 | . . 33 . Melee . | . . . . Projectile . | . . . . AOE 33 | . . 33 . Terrain Rammed . | . . . . Walls Destroyed . | . . . . Machines Disabled . | . . . . Actions | -11 -10 -9 -8 --------- Run | Yrd Mat Mat Mat Total 885 | 56 228 553 48 Wait 28 | . 4 20 4 Move 730 | 46 195 450 39 Hop . | . . . . Pick Up 29 | 5 9 15 . Fast Attach 10 | 4 . 6 . Attach 10 | 1 2 7 . Detach . | . . . . Swap 5 | . . 5 . Drop 13 | . . 13 . Fire 60 | . 18 37 5 Melee . | . . . . Ram . | . . . . Kick . | . . . . Crush . | . . . . Escape Stasis . | . . . . Rewire . | . . . . Trap . | . . . . Miscellaneous . | . . . . Route ------- -11/Scrapyard -10/Materials -9/Materials -8/Materials History --------- Turn | Location | Event 11 | -11/Scrapyard | Discovered new exit (range 14) 61 | -11/Scrapyard | Entered Materials 62 | -10/Materials | Met a group of wandering Federalists 155 | -10/Materials | Discovered new exit (range 16) 315 | -10/Materials | Build established: Mutant 477 | -10/Materials | Entered another Materials area 477 | -9/Materials | Evolved 2 slots: Weapon x2 770 | -9/Materials | Build established: Gunner 1188 | -9/Materials | Discovered new exit (range 15) 1356 | -9/Materials | Build established: Tank 1689 | -9/Materials | Entered another Materials area 1689 | -8/Materials | Evolved 2 slots: Utility x2 1810 | -8/Materials | Self-destructed Last Messages --------------- Power failure, Imp. Ion Engine shutdown. Matter Pump disabled. Overheating: Aluminum Leg damaged (-31). Overheating: System interference. Particle Cannon temporarily disabled. Med. Laser temporarily disabled. Med. Laser destroyed. Particle Cannon destroyed. Power failure, Imp. Ion Engine shutdown. Overheating: Core damaged (-55). Overheating: Energy bleed (-41). Aluminum Leg destroyed. Overheating: System interference. Particle Cannon temporarily disabled. Particle Cannon destroyed. Imp. Ion Engine destroyed. Overheating: Aluminum Leg damaged (-27). Overheating: Particle Cannon damaged (-27). Overheating: Lrg. Storage Unit damaged (-118). Aluminum Leg destroyed. Map ----- +----------------------------------------------------+ | ?????????????????????????????????????????????????? | | ?????????????????????????????????????????????????? | | ?????###########?????????????????????????????????? | | ?????+ #?????????????????????????????????? | | ?????# #?????????????????????????????????? | | ?????# # ??????????????????????????????? | | ?????# # ?????????????????????????????? | | ?????# # ?????????????????????????????? | | ?????# # #?????????????????????????????? | | ?????# # #?????????????????????????????? | | ?????# # #?????????????????????????????? | | ????######+##### #?????????????????????????????? | | ????# #?????????????????????????????? | | ????# #?????????????????????????????? | | ????# "T" #?????????????????????????????? | | ????##### #?????????????????????????????? | | ????????# #?????????????????????????????? | | ????????# """ #?????????????? r?????????????? | | ????????# """ ############## #????????????? | | ????????# """ #????????????? | | ????????# a#????????????? | | ????????# r#????????????? | | ????????############## """ a #????????????? | | ?????????????????????# """ [* #????????????? | | ?????????????????????# %"" * #????????????? | | ?????????????????????# g@g #????????????? | | ?????????????????????# g #????????????? | | ?????????????????????# ! ?????????? | | ?????????????????????+ =%* ?????????? | | ?????????????????????# "" ?????????? | | ?????????????????????### g """"?????????????? | | ???????????????????????# g """??????????????? | | ???????????????????????# """??????????????? | | ???????????????????????# "???????????????? | | ???????????????????????# ??????????????? | | ??????????????????????? a ??????????????? | | ??????????????????????? ?????????????? | | ??????????????????????? ??????????????? | | ???????????????????????##########????????????????? | | ?????????????????????????????????????????????????? | | ?????????????????????????????????????????????????? | | ?????????????????????????????????????????????????? | | ?????????????????????????????????????????????????? | | ?????????????????????????????????????????????????? | | ?????????????????????????????????????????????????? | | ?????????????????????????????????????????????????? | | ?????????????????????????????????????????????????? | | ?????????????????????????????????????????????????? | | ?????????????????????????????????????????????????? | | ?????????????????????????????????????????????????? | +----------------------------------------------------+ Best States ------------- Heat Dissipation 31 Energy Generation 14 Energy Capacity 265 Matter Stores 281 Matter Capacity 300 Sight Range 16 Terrain Scan Density 10 Armor Coverage 150 Evasion (%) 55 Recoil Reduction 2 Item Schematics ----------------- Shotgun | -9/Materials | Scanalyzed Aluminum Leg | -9/Materials | Scanalyzed Beam Cannon | -9/Materials | Scanalyzed Hvy. Assault Rifle | -9/Materials | Scanalyzed Robot Schematics ------------------ None Fabricated ------------ Nothing Repaired ---------- Nothing Studied --------- None Alien Tech Used ----------------- None Achievements -------------- More Dakka Please Shopping List Challenges ------------ None Game ------ Seed NullMicrowarpSword Manual? 0 Play Time 00:22:18 Cumulative 4.4 hours Start 2026.04.11 @ 00:51:29 End 2026.04.13 @ 22:12:13 Sessions 4 Manual Loads 0 Difficulty Rogue Special Mode None Game No. 7 Rogue 7 Adventurer 0 Explorer 0 Win Type - Total 0 Types 0/0/0/0/0/0/0/0/0/0 Lore% 1 Gallery% 5 Achievement% 8 Wizard Run 0 Options --------- Layout 1 ASCII 0 Keyboard 0 Movement Mouse Keybinds 0 Fullscreen 1 Font 24/X11 Map View 50x35 Zoom Use 0% Tactical HUD 0 Map Filters NONE Filters NONE Steam 1 RUN: e5786521-61f4-4283-b3f0-42de1c5128c7